fUST/lending_fUST_20240414
["ID","MTS","AMOUNT","RATE_DAILY","PERIOD"]
[322555618,1713052240345,-500.0,0.00054794,120]
[322555621,1713052240354,-1241.28,0.00054794,120]
[322555624,1713052240363,-500.0,0.00054794,120]
[322555627,1713052240373,-500.0,0.00054794,120]
[322555629,1713052240383,-283.23355185,0.00054794,120]
[322555647,1713052240468,-500.0,0.00054794,120]
[322555650,1713052240478,-454.30543053,0.00054794,120]
[322555653,1713052240487,-500.0,0.00054794,120]
[322555656,1713052240497,-390.19021172,0.00054794,120]
[322555659,1713052240509,-508.29695885,0.00054794,120]
[322555662,1713052240519,-506.97942775,0.00054794,120]
[322555665,1713052240529,-500.0,0.00054794,120]
[322555668,1713052240539,-500.0,0.00054794,120]
[322555671,1713052240548,-500.0,0.00054794,120]
[322555674,1713052240558,-500.0,0.00054794,120]
[322555677,1713052240567,-500.0,0.00054794,120]
[322555680,1713052240576,-500.0,0.00054794,120]
[322555683,1713052240585,-500.0,0.00054794,120]
[322555686,1713052240595,-500.0,0.00054794,120]
[322555689,1713052240604,-500.0,0.00054794,120]
[322555692,1713052240613,-500.0,0.00054794,120]
[322555695,1713052240622,-231.07620024,0.00054794,120]
[322555698,1713052240631,-500.0,0.00054794,120]
[322555701,1713052240640,-500.0,0.00054794,120]
[322555704,1713052240649,-500.49791062,0.00054794,120]
[322555707,1713052240659,-312.46210733,0.00054794,120]
[322555709,1713052240668,-500.0,0.00054794,120]
[322555712,1713052240677,-500.0,0.00054794,120]
[322555715,1713052240686,-500.0,0.00054794,120]
[322555718,1713052240695,-500.0,0.00054794,120]
[322555721,1713052240704,-500.0,0.00054794,120]
[322555723,1713052240712,-500.0,0.00054794,120]
[322555726,1713052240721,-500.0,0.00054794,120]
[322555729,1713052240730,-500.0,0.00054794,120]
[322555732,1713052240740,-620.24,0.00054794,120]
[322555735,1713052240749,-500.0,0.00054794,120]
[322555738,1713052240759,-500.33082873,0.00054794,120]
[322555741,1713052240768,-504.05504089,0.00054794,7]
[322555744,1713052240777,-693.06,0.00054794,120]
[322555747,1713052240786,-500.0,0.00054794,120]
[322555750,1713052240795,-500.0,0.00054794,120]
[322555753,1713052240804,-500.0,0.00054794,120]
[322555756,1713052240813,-500.0,0.00054794,120]
[322555759,1713052240822,-500.0,0.00054794,120]
[322555762,1713052240831,-500.0,0.00054794,120]
[322555765,1713052240840,-500.0,0.00054794,120]
[322555768,1713052240849,-500.0,0.00054794,120]
[322555771,1713052240858,-500.0,0.00054794,120]
[322555773,1713052240867,-500.0,0.00054794,120]
[322555776,1713052240882,-500.0,0.00054794,120]
[322555779,1713052240891,-500.0,0.00054794,120]
[322555782,1713052240902,-505.95,0.00054794,120]
[322555785,1713052240911,-500.0,0.00054794,120]
[322555788,1713052240921,-504.3688192,0.00054794,120]
[322555791,1713052240931,-500.0,0.00054794,120]
[322555794,1713052240939,-500.0,0.00054794,120]
[322555796,1713052240949,-500.0,0.00054794,120]
[322555799,1713052240959,-502.15700964,0.00054794,120]
[322555802,1713052240968,-500.0,0.00054794,120]
[322555805,1713052240977,-500.0,0.00054794,120]
[322555809,1713052240987,-447.73162758,0.00054794,120]
[322555812,1713052240998,-500.0,0.00054794,120]
[322555815,1713052241009,-1934.61,0.00054794,120]
[322555818,1713052241018,-500.0,0.00054794,120]
[322555821,1713052241027,-1534.39,0.00054794,120]
[322555824,1713052241036,-1534.39,0.00054794,120]
[322555827,1713052241045,-500.31148801,0.00054794,120]
[322555830,1713052241055,-1534.39,0.00054794,120]
[322555833,1713052241064,-1534.39,0.00054794,120]
[322555836,1713052241073,-1534.39,0.00054794,120]
[322555839,1713052241082,-1534.39,0.00054794,120]
[322555842,1713052241091,-1534.39,0.00054794,120]
[322555845,1713052241101,-1534.39,0.00054794,120]
[322555847,1713052241109,-1534.39,0.00054794,120]
[322555850,1713052241118,-1534.39,0.00054794,120]
[322555853,1713052241127,-1534.39,0.00054794,120]
[322555856,1713052241137,-1613.59,0.00054794,120]
[322555859,1713052241148,-1534.39,0.00054794,120]
[322555862,1713052241157,-1534.39,0.00054794,120]
[322555865,1713052241166,-1534.39,0.00054794,120]
[322555868,1713052241176,-1534.39,0.00054794,120]
[322555871,1713052241184,-1534.39,0.00054794,120]
[322555874,1713052241194,-1534.39,0.00054794,120]
[322555877,1713052241203,-1534.39,0.00054794,120]
[322555879,1713052241212,-1534.39,0.00054794,120]
[322555881,1713052241221,-1534.39,0.00054794,120]
[322555883,1713052241230,-1534.39,0.00054794,120]
[322555885,1713052241239,-1534.39,0.00054794,120]
[322555887,1713052241248,-1534.39,0.00054794,120]
[322555890,1713052241262,-1534.53933591,0.00054794,120]
[322555893,1713052241271,-500.0,0.00054794,120]
[322555896,1713052241279,-500.0,0.00054794,120]
[322555899,1713052241287,-500.0,0.00054794,120]
[322555902,1713052241296,-500.0,0.00054794,120]
[322555904,1713052241305,-500.0,0.00054794,120]
[322555907,1713052241314,-500.0,0.00054794,120]
[322555910,1713052241324,-500.0,0.00054794,120]
[322555913,1713052241333,-500.0,0.00054794,120]
[322555916,1713052241341,-2818.96,0.00054794,120]
[322555919,1713052241350,-500.0,0.00054794,120]
[322555921,1713052241359,-500.0,0.00054794,120]
[322555925,1713052241370,-247.1634306,0.00054794,120]
[322555929,1713052241388,-252.8365694,0.00054794,120]
[322555933,1713052241398,-66.5134306,0.00054794,120]
[322556133,1713052243161,-433.4865694,0.00054794,120]
[322556134,1713052243170,-500.0,0.00054794,120]
[322556135,1713052243179,-500.0,0.00054794,120]
[322556136,1713052243187,-500.0,0.00054794,120]
[322556137,1713052243196,-500.0,0.00054794,120]
[322556138,1713052243205,-500.0,0.00054794,120]
[322556139,1713052243215,-486.67206091,0.00054794,120]
[322556144,1713052243238,-0.02921338,0.00054794,120]
[322556194,1713052412736,281184.10708342,0.00043633,60]
[322556199,1713052483060,1891.10804821,0.00022,90]
[322556200,1713052483344,12005.87473672,0.00023,2]
[322556201,1713052483705,217.85372638,0.00018,120]
[322556202,1713052484261,154.87609812,0.00043633,120]
[322556204,1713053148110,-188.04541416,0.00034997,4]
[322556215,1713053242102,-169.535892,0.00027397,2]
[322556216,1713053242124,-465.13392178,0.00034999,4]
[322556217,1713053242145,-186.15517096,0.00035,30]
[322556218,1713053242166,-511.30742988,0.00035,2]
[322556251,1713053432255,-3225.3453258,0.00035,4]
[322556305,1713053438204,-197.66367591,0.00035,4]
[322556307,1713053438215,-596.67479795,0.00035099,2]
[322556309,1713053438226,-739.208079,0.000351,2]
[322556311,1713053438236,-1505.62231079,0.00035455,14]
[322556313,1713053438248,-549.877587,0.00035616,120]
[322556315,1713053438259,-1856.55,0.00035683,7]
[322556317,1713053438270,-337.186781,0.00035694,2]
[322556319,1713053438281,-255.778738,0.0003624,2]
[322556321,1713053438291,-300.0,0.00036998,2]
[322556323,1713053438301,-300.0,0.00036998,2]
[322556325,1713053438311,-9160.46369962,0.00037,40]
[322556327,1713053438322,-2045.13777758,0.00037307,2]
[322556330,1713053438333,-465.13392178,0.00037308,4]
[322556332,1713053438343,-5514.18736228,0.00037309,2]
[322556341,1713053439688,-2785.60225933,0.00037309,2]
[322556344,1713053440190,-9685.30311839,0.00037309,2]
[322556345,1713053440200,-158.601093,0.00039902,2]
[322556346,1713053440210,-600.27230005,0.0004,2]
[322556347,1713053440219,-359.06392274,0.0004,2]
[322556348,1713053440229,-1407.30715224,0.0004,4]
[322556349,1713053440239,-179.94161688,0.000409,2]
[322556351,1713053440253,-171.22780826,0.00040998,4]
[322556353,1713053440262,-182.07794757,0.00040998,2]
[322556354,1713053440273,-206.50498726,0.00040998,4]
[322556355,1713053440282,-557.59784463,0.00040998,4]
[322556356,1713053440293,-407.86313878,0.00040998,4]
[322556357,1713053440303,-201.76,0.00040998,4]
[322556358,1713053440313,-1218.18721073,0.00040998,4]
[322556359,1713053440323,-2598.44,0.00040999,2]
[322556360,1713053440334,-2598.44,0.00040999,2]
[322556361,1713053440343,-2598.44,0.00040999,2]
[322556362,1713053440352,-2598.44,0.00040999,2]
[322556363,1713053440362,-2598.44,0.00040999,2]
[322556364,1713053440371,-2598.44,0.00040999,2]
[322556365,1713053440381,-2598.44,0.00040999,2]
[322556366,1713053440390,-486.25389966,0.00040999,31]
[322556367,1713053440400,-314.80891164,0.00040999,31]
[322556368,1713053440410,-361.09860173,0.00040999,31]
[322556369,1713053440420,-153.60574541,0.00040999,31]
[322556370,1713053440430,-22243.77515506,0.00041,5]
[322556371,1713053440444,-151368.56332425,0.00041,30]
[322556372,1713053440458,-696.41999977,0.00041,30]
[322556396,1713053443408,-1152.35754258,0.00041,30]
[322556419,1713053458837,1756.27290826,0.000262,60]
[322556420,1713053458859,1699.09163434,0.000262,60]
[322556421,1713053458893,6544.6354574,0.000262,60]
[322556424,1713053667364,517.55625264,0.000262,2]
[322556425,1713053720164,21330.77780972,0.00026,60]
[322556426,1713053720197,10000.0,0.00026,60]
[322556427,1713053720221,20000.0,0.00026,60]
[322556428,1713053720245,86789.02553377,0.00026,60]
[322556429,1713053720283,100000.0,0.00026,60]
[322556430,1713053720315,61880.19665651,0.00026,60]
[322556431,1713053841490,38119.80334349,0.00026,60]
[322556432,1713053841522,71880.19665651,0.00026,60]
[322556433,1713053849283,1418.19854585,0.00043192,31]
[322556434,1713053930289,985.86,0.000267,120]
[322556440,1713054358235,-1547.52407182,0.00026805,2]
[322556441,1713054448104,-1760.01425759,0.00026531,2]
[322556443,1713054551119,-441.57895944,0.00024999,2]
[322556444,1713054563174,-1965.83017866,0.00024997,2]
[322556445,1713054563197,-2582.43415797,0.00024998,2]
[322556446,1713054563222,-646.67973106,0.00024999,2]
[322556447,1713054563242,-215.98297057,0.00024999,2]
[322556448,1713054563265,-632.76769938,0.00025,2]
[322556449,1713054563284,-264.83807896,0.00026434,7]
[322556450,1713054563306,-166.75582828,0.00026435,3]
[322556451,1713054563327,-30687.25611876,0.00026523,2]
[322556452,1713054563347,-20598.56359684,0.00026524,2]
[322556453,1713054563366,-157.42885592,0.00026525,2]
[322556454,1713054563385,-154.87609912,0.00026525,2]
[322556455,1713054563404,-1618.35178688,0.00026525,2]
[322556456,1713054563423,-300.0,0.00026525,2]
[322556457,1713054563444,-261.0,0.00026525,2]
[322556458,1713054563464,-2095.05085537,0.00026526,2]
[322556459,1713054563484,-9552.3336806,0.00026528,2]
[322556460,1713054563503,-7851.65635854,0.0002653,2]
[322556461,1713054563526,-16060.56767013,0.00026531,2]
[322556462,1713054563548,-5000.0,0.00026536,5]
[322556463,1713054563568,-2628.76245837,0.00026803,2]
[322556464,1713054563590,-5486.79109042,0.00026803,2]
[322556465,1713054563609,-538.03523509,0.00026804,2]
[322556466,1713054563628,-173.20392627,0.00026804,2]
[322556467,1713054563663,-500.0,0.00026804,2]
[322556468,1713054563683,-500.0,0.00026804,2]
[322556469,1713054563703,-500.0,0.00026804,2]
[322556470,1713054563721,-500.0,0.00026804,2]
[322556471,1713054563741,-500.0,0.00026804,2]
[322556472,1713054563767,-500.0,0.00026804,2]
[322556473,1713054563787,-500.0,0.00026804,2]
[322556474,1713054563808,-500.0,0.00026804,2]
[322556475,1713054563828,-500.0,0.00026804,2]
[322556476,1713054563848,-500.0,0.00026804,2]
[322556477,1713054563868,-500.0,0.00026804,2]
[322556478,1713054563888,-500.0,0.00026804,2]
[322556479,1713054563910,-500.0,0.00026804,2]
[322556480,1713054563930,-500.0,0.00026804,2]
[322556481,1713054563951,-500.0,0.00026804,2]
[322556482,1713054563972,-500.0,0.00026804,2]
[322556483,1713054563992,-500.0,0.00026804,2]
[322556484,1713054564018,-500.0,0.00026804,2]
[322556485,1713054564038,-382.03236725,0.00026804,2]
[322556486,1713054564058,-500.0,0.00026804,2]
[322556487,1713054564078,-500.0,0.00026804,2]
[322556488,1713054564180,-500.0,0.00026804,2]
[322556489,1713054564199,-500.0,0.00026804,2]
[322556490,1713054564219,-300.0,0.00026804,2]
[322556491,1713054564238,-500.0,0.00026804,2]
[322556492,1713054564262,-237.93432944,0.00026805,2]
[322556493,1713054564282,-385.20972518,0.00026805,2]
[322556494,1713054564302,-30883.39934318,0.00026805,7]
[322556495,1713054564323,-258.3578004,0.00026808,2]
[322556496,1713054565423,5000.0,0.000262,5]
[322556497,1713054566119,-78.8289806,0.00026808,2]
[322556498,1713054566140,-11373.73297673,0.00027038,2]
[322556499,1713054566161,-166.722842,0.00027108,2]
[322556500,1713054566181,-176.7106089,0.0002729,2]
[322556501,1713054566200,-352.41540877,0.00027311,2]
[322556502,1713054566220,-200.0,0.00027311,2]
[322556503,1713054566241,-10740.42433217,0.00027313,2]
[322556531,1713054632636,-154.87609912,0.00026528,2]
[322556532,1713054632646,-175.57059763,0.00026528,2]
[322556571,1713054639789,-700.11801894,0.00026528,2]
[322556572,1713054639800,-506.78518711,0.00026528,2]
[322556573,1713054639819,-564.695468,0.00026528,2]
[322556575,1713054639845,-783.69210186,0.00026528,2]
[322556577,1713054639855,-188.79833503,0.00026529,2]
[322556578,1713054639865,-240.94703798,0.00026529,2]
[322556579,1713054639875,-242.99498652,0.0002653,2]
[322556580,1713054639885,-282.59630423,0.0002653,2]
[322556581,1713054639895,-1494.69948559,0.0002653,2]
[322556582,1713054639905,-300.0,0.0002653,2]
[322556584,1713054639915,-9285.46786019,0.00026531,2]
[322556585,1713054639931,-3804.63105596,0.00026767,5]
[322556586,1713054639940,-6747.01885684,0.00027311,2]
[322556587,1713054639950,-4510.71999271,0.00027311,2]
[322556588,1713054639960,-1091.94006342,0.00027311,2]
[322556589,1713054639969,-215.98297057,0.00027311,2]
[322556590,1713054639979,-475.46172777,0.00027311,2]
[322556591,1713054639992,-2106.9724302,0.00027311,2]
[322556592,1713054640001,-264.83807896,0.00027311,7]
[322556593,1713054640011,-1618.35178688,0.00027312,2]
[322556594,1713054640022,-1924.543332,0.00027312,2]
[322556595,1713054640031,-5329.07231273,0.00027313,2]
[322556596,1713054640040,-1787.74073555,0.00027395,2]
[322556597,1713054640050,-170.4430678,0.00027397,2]
[322556598,1713054640063,-165.479367,0.00027397,2]
[322556599,1713054640072,-163.955489,0.00028375,2]
[322556600,1713054640082,-420.0,0.00029183,2]
[322556601,1713054640092,-155.02978743,0.00029995,2]
[322556602,1713054640102,-155.6710823,0.00029995,2]
[322556603,1713054640111,-563.33763702,0.00029995,2]
[322556604,1713054640121,-500.0,0.00029995,2]
[322556605,1713054640130,-298.00359636,0.00029995,2]
[322556606,1713054640140,-500.0,0.00029995,2]
[322556607,1713054640149,-540.66248136,0.00029996,2]
[322556608,1713054640159,-155.53425428,0.00029996,2]
[322556609,1713054640168,-309.56660676,0.00029996,2]
[322556610,1713054640177,-234.35159784,0.00029996,2]
[322556611,1713054640187,-345.66,0.00029996,2]
[322556612,1713054640196,-157.42885592,0.00029996,2]
[322556613,1713054640211,-419.6590488,0.00029996,2]
[322556614,1713054640220,-154.87609912,0.00029996,2]
[322556615,1713054640230,-404.21971349,0.00029996,2]
[322556616,1713054640239,-193.30076871,0.00029996,2]
[322556617,1713054640248,-272.41852159,0.00029996,2]
[322556618,1713054640258,-154.87609912,0.00029996,2]
[322556619,1713054640267,-203.01368722,0.00029996,2]
[322556620,1713054640277,-11699.33510496,0.00029996,2]
[322556621,1713054640289,-3691.78633207,0.00029996,2]
[322556622,1713054640301,-14889.84749225,0.00029996,2]
[322556623,1713054640314,-400.0,0.00029996,2]
[322556624,1713054640323,-1681.43989039,0.00029996,2]
[322556625,1713054640332,-163.8615962,0.00029996,2]
[322556626,1713054640341,-277.31237042,0.00029996,2]
[322556627,1713054640350,-155.1005172,0.00029996,2]
[322556628,1713054640360,-1911.5275723,0.00029996,2]
[322556629,1713054640369,-282.18206479,0.00029996,2]
[322556630,1713054640378,-291.28282899,0.00029997,2]
[322556631,1713054640388,-5134.72880684,0.00029997,2]
[322556632,1713054640397,-154.92253873,0.00029998,2]
[322556633,1713054640407,-889.30553107,0.00029998,2]
[322556634,1713054640416,-155.06234485,0.00029998,2]
[322556635,1713054640425,-297.45553492,0.00029998,2]
[322556636,1713054640434,-167.17702244,0.00029998,2]
[322556637,1713054640444,-159.67579898,0.00029998,2]
[322556638,1713054640454,-156.30294808,0.00029998,2]
[322556639,1713054640462,-155.38716655,0.00029998,2]
[322556640,1713054640472,-221.63830907,0.00029998,2]
[322556641,1713054640481,-185.68184053,0.00029998,2]
[322556642,1713054640491,-266.13395958,0.00029998,2]
[322556643,1713054640500,-212.52786944,0.00029998,2]
[322556644,1713054640510,-156.38945206,0.00029998,2]
[322556645,1713054640519,-213.95808583,0.00029998,2]
[322556646,1713054640528,-278.36597163,0.00029998,2]
[322556647,1713054640537,-155.36142119,0.00029998,2]
[322556648,1713054640546,-538.47573593,0.00029998,2]
[322556649,1713054640555,-155.0,0.00029998,2]
[322556650,1713054640567,-156.20487262,0.00029998,2]
[322556651,1713054640577,-537.68509393,0.00029998,2]
[322556652,1713054640587,-367.52809974,0.00029998,2]
[322556653,1713054640598,-301.83980393,0.00029998,2]
[322556654,1713054640607,-156.18040776,0.00029998,2]
[322556655,1713054640617,-476.99145906,0.00029998,2]
[322556656,1713054640626,-248.24598955,0.00029998,2]
[322556657,1713054640636,-2120.63245232,0.00029998,2]
[322556658,1713054640646,-303.95639067,0.00029998,2]
[322556659,1713054640655,-241.90686343,0.00029998,2]
[322556660,1713054640666,-155.61924772,0.00029998,2]
[322556661,1713054640675,-256.04017498,0.00029998,2]
[322556663,1713054640685,-1308.15892502,0.00029998,2]
[322556665,1713054640694,-157.68017818,0.00029998,2]
[322556667,1713054640703,-4032.91201004,0.00029998,2]
[322556669,1713054640713,-162.20248574,0.00029998,2]
[322556671,1713054640722,-155.69437185,0.00029998,2]
[322556673,1713054640731,-8504.32940891,0.00029998,2]
[322556675,1713054640740,-298.95072335,0.00029998,2]
[322556682,1713054640811,-473.43587504,0.00029998,2]
[322556685,1713054640821,-303.42336337,0.00029998,2]
[322556686,1713054640830,-155.9468745,0.00029998,2]
[322556688,1713054640840,-362.55538513,0.00029998,2]
[322556690,1713054640849,-283.69927574,0.0003,4]
[322556692,1713054640859,-176.18305468,0.0003189,7]
[322556694,1713054640868,-4516.32055967,0.00032,5]
[322556696,1713054640877,-587.0,0.00032101,2]
[322556697,1713054640887,-465.13392178,0.00034,4]
[322556699,1713054640897,-6863.59001365,0.00035,4]
[322556702,1713054640906,-596.67479795,0.00035,2]
[322556704,1713054640916,-154.87609912,0.00035,4]
[322556705,1713054640926,-320.10207528,0.00035,30]
[322556707,1713054640935,-823.0,0.00035311,2]
[322556709,1713054640945,-3693.08939,0.00035616,120]
[322556711,1713054640954,-622.23568629,0.00036794,2]
[322556713,1713054640964,-2045.13777758,0.00037,2]
[322556715,1713054640973,-1087.258395,0.000372,12]
[322556717,1713054640982,-384.81468294,0.000388,2]
[322556719,1713054640991,-1152.0,0.00038843,3]
[322556720,1713054641000,-622.23568629,0.00038847,2]
[322556721,1713054641010,-1831.31857883,0.000395,15]
[322556722,1713054641019,-20003.7177,0.00039528,30]
[322556723,1713054641029,-1407.30715224,0.0004,4]
[322556724,1713054641037,-201.65562337,0.0004,2]
[322556725,1713054641046,-154.87609912,0.0004,15]
[322556726,1713054641056,-95679.2336421,0.000401,120]
[322556727,1713054641066,-337.186781,0.00040212,2]
[322556728,1713054641075,-150.87929656,0.0004043,2]
[322556729,1713054641084,-4320.43709123,0.00040898,2]
[322556730,1713054641093,-622.23568629,0.000409,2]
[322556731,1713054641103,-421.69804326,0.00040995,31]
[322556732,1713054641112,-500.0,0.00040995,31]
[322556733,1713054641121,-500.0,0.00040995,31]
[322556734,1713054641131,-500.0,0.00040995,31]
[322556735,1713054641140,-595.84239996,0.00040995,31]
[322556736,1713054641149,-500.0,0.00040995,31]
[322556737,1713054641159,-500.0,0.00040995,31]
[322556738,1713054641168,-396.32022527,0.00040995,31]
[322556739,1713054641177,-500.0,0.00040995,31]
[322556740,1713054641186,-500.0,0.00040995,31]
[322556741,1713054641195,-500.0,0.00040995,31]
[322556742,1713054641204,-457.65196045,0.00040995,31]
[322556743,1713054641214,-500.0,0.00040995,31]
[322556744,1713054641223,-500.0,0.00040995,31]
[322556745,1713054641232,-500.0,0.00040995,31]
[322556746,1713054641241,-500.0,0.00040995,31]
[322556747,1713054641251,-500.0,0.00040995,31]
[322556748,1713054641260,-460.52106976,0.00040995,31]
[322556749,1713054641269,-207.32898028,0.00040995,31]
[322556750,1713054641278,-500.0,0.00040995,31]
[322556751,1713054641288,-500.0,0.00040995,31]
[322556752,1713054641297,-500.0,0.00040995,31]
[322556753,1713054641306,-500.0,0.00040995,31]
[322556755,1713054641318,-500.0,0.00040995,31]
[322556756,1713054641327,-183.47292162,0.00040995,31]
[322556757,1713054641336,-500.0,0.00040995,31]
[322556759,1713054641344,-500.0,0.00040995,31]
[322556761,1713054641353,-500.0,0.00040995,31]
[322556762,1713054641362,-500.0,0.00040995,31]
[322556763,1713054641372,-500.0,0.00040995,31]
[322556764,1713054641381,-381511.30843426,0.00040996,5]
[322556765,1713054641391,-179836.010109,0.00040996,2]
[322556766,1713054641400,-1294.94716389,0.00040999,4]
[322556767,1713054641409,-3154.18,0.00040999,2]
[322556768,1713054641418,-3154.18,0.00040999,2]
[322556769,1713054641426,-3154.18,0.00040999,2]
[322556770,1713054641435,-3154.18,0.00040999,2]
[322556771,1713054641444,-3154.18,0.00040999,2]
[322556773,1713054641453,-3154.18,0.00040999,2]
[322556775,1713054641462,-3154.18,0.00040999,2]
[322556776,1713054641472,-3154.18,0.00040999,2]
[322556778,1713054641481,-3154.18,0.00040999,2]
[322556780,1713054641490,-123072.11974276,0.00041,30]
[322556781,1713054641499,-1061.68591961,0.00041,4]
[322556782,1713054641508,-169.23232598,0.00041,120]
[322556783,1713054641518,-188.52918615,0.00041,2]
[322556784,1713054641527,-1000.0,0.00041,3]
[322556785,1713054641536,-2000.0,0.00041,30]
[322556786,1713054641545,-554.108163,0.00041,2]
[322556787,1713054641554,-554.108163,0.00041,2]
[322556788,1713054641566,-151.0,0.00041,2]
[322556789,1713054641576,-151.0,0.00041,2]
[322556790,1713054641585,-151.0,0.00041,2]
[322556791,1713054641597,-151.0,0.00041,2]
[322556792,1713054641607,-151.0,0.00041,2]
[322556793,1713054641616,-179.539055,0.00041,2]
[322556794,1713054641625,-179.539055,0.00041,2]
[322556795,1713054641634,-230.127448,0.00041,2]
[322556796,1713054641644,-230.127448,0.00041,2]
[322556797,1713054641653,-151.0,0.00041,2]
[322556798,1713054641662,-151.0,0.00041,2]
[322556799,1713054641671,-151.0,0.00041,2]
[322556800,1713054641680,-151.0,0.00041,2]
[322556801,1713054641690,-2000.0,0.0004101,30]
[322556802,1713054641698,-2000.0,0.0004102,30]
[322556803,1713054641707,-2172.641936,0.0004103,30]
[322556804,1713054641717,-1233.1332106,0.00041096,7]
[322556805,1713054641727,-177.6425169,0.00041096,2]
[322556806,1713054641736,-400.0,0.00041096,30]
[322556807,1713054641745,-500.0,0.00041096,7]
[322556808,1713054641754,-360.34473428,0.00041096,7]
[322556809,1713054641763,-301.75859313,0.0004111,4]
[322556810,1713054641772,-643.96049846,0.00041186,15]
[322556811,1713054641782,-643.20174263,0.0004132,15]
[322556812,1713054641791,-33296.7715,0.00041528,30]
[322556813,1713054641801,-3693.08939,0.00041553,120]
[322556814,1713054641813,-603.51718625,0.00041801,7]
[322556815,1713054641822,-443.54947507,0.00042,120]
[322556816,1713054641832,-166.86043165,0.00042503,4]
[322556817,1713054641841,-1613.0,0.00042727,3]
[322556818,1713054641910,-1496.22365919,0.00042818,17]
[322556819,1713054641920,-1207.0343725,0.00042859,30]
[322556820,1713054641929,-1000.0,0.00043,30]
[322556821,1713054641938,-6253.38,0.00043032,7]
[322556822,1713054641947,-151.0,0.00043033,7]
[322556823,1713054641956,-176.94,0.00043033,7]
[322556824,1713054641965,-176.94,0.00043033,7]
[322556825,1713054641974,-176.94,0.00043033,7]
[322556826,1713054641982,-176.94,0.00043033,7]
[322556827,1713054641991,-151.0,0.00043033,7]
[322556828,1713054642000,-151.0,0.00043033,7]
[322556829,1713054642010,-151.0,0.00043033,7]
[322556830,1713054642019,-151.0,0.00043033,7]
[322556831,1713054642028,-160.032477,0.00043033,7]
[322556832,1713054642037,-1367.763383,0.00043033,7]
[322556833,1713054642047,-1367.763383,0.00043033,7]
[322556834,1713054642056,-1367.763383,0.00043033,7]
[322556835,1713054642069,-1367.763383,0.00043033,7]
[322556836,1713054642078,-424.294136,0.00043033,7]
[322556837,1713054642088,-424.294136,0.00043033,7]
[322556838,1713054642097,-424.294136,0.00043033,7]
[322556839,1713054642107,-424.294136,0.00043033,7]
[322556840,1713054642117,-1038.905488,0.00043033,7]
[322556841,1713054642126,-1038.905488,0.00043033,7]
[322556842,1713054642135,-1038.905488,0.00043033,7]
[322556843,1713054642145,-1038.905488,0.00043033,7]
[322556844,1713054642154,-540.678557,0.00043033,7]
[322556845,1713054642164,-540.678557,0.00043033,7]
[322556846,1713054642174,-540.678557,0.00043033,7]
[322556847,1713054642183,-540.678557,0.00043033,7]
[322556848,1713054642193,-540.678557,0.00043033,7]
[322556849,1713054642202,-540.678557,0.00043033,7]
[322556850,1713054642210,-2130.952947,0.00043033,7]
[322556851,1713054642220,-2130.952947,0.00043033,7]
[322556852,1713054642229,-2130.952947,0.00043033,7]
[322556853,1713054642238,-2130.952947,0.00043033,7]
[322556854,1713054642248,-2130.952947,0.00043033,7]
[322556855,1713054642257,-2130.952947,0.00043033,7]
[322556856,1713054642266,-151.0,0.00043033,7]
[322556857,1713054642276,-151.0,0.00043033,7]
[322556858,1713054642285,-197.436547,0.00043033,7]
[322556859,1713054642294,-197.436547,0.00043033,7]
[322556860,1713054642303,-1630.81646,0.00043033,7]
[322556861,1713054642317,-1630.81646,0.00043033,7]
[322556862,1713054642326,-155.217959,0.00043033,7]
[322556863,1713054642336,-151.0,0.00043033,7]
[322556864,1713054642345,-151.0,0.00043033,7]
[322556865,1713054642354,-151.0,0.00043033,7]
[322556866,1713054642363,-151.0,0.00043033,7]